Cogmind - Beta 14 @@@ ROGUE MODE // 2024.11.29 @ 10:45:34 Player: UnderDoug Result: Destroyed by P-60 Hacker with Shock Rifle Performance ------------- Evolutions (1) 500 Regions Visited (4) 800 Robots Destroyed (40) 200 Value Destroyed (1174) 1174 Prototype IDs (7) 140 Alien Tech Used (0) 0 Bonus (313) 313 TOTAL SCORE: 3127 Bonus ------- Follower Combat Kills 240 Entered Garrisons 200 Friendly Fire -127 Cogmind --------- Core Integrity 0/400 Matter 170/300 Energy 125/125 System Corruption 1% Temperature Cool (0) Movement Flying (37) Location -9/Garrison Parts ------- > --- POWER (2) -------- Light Ion Engine > --- PROPULSION (3) --- Improved Flight Unit Improved Flight Unit > --- UTILITY (2) ------ (None) > --- WEAPON (2) ------- Datajack > --- INVENTORY (5) ---- Improved Ion Engine Improved Ion Engine Peak State ------------ > --- POWER ------------ Light Ion Engine Light Angular Momentum Engine > --- PROPULSION ------- Improved Flight Unit Improved Flight Unit Improved Flight Unit > --- UTILITY ---------- Light Armor Plating > --- WEAPON ----------- Improved Assault Rifle Mining Claw > --- INVENTORY -------- Ion Engine Light Ion Engine Improved Ion Engine Datajack [Rating: 20] Favorites ----------- Power Light Ion Engine Engine Light Ion Engine Propulsion Light Treads Treads Light Treads Leg Aluminum Leg Wheel Compact Wheel Flight Unit Improved Flight Unit Utility Large Storage Unit Device Field Recycling Unit Storage Large Storage Unit Protection Light Armor Plating Weapon Autogun Energy Gun Spread Laser Energy Cannon Beam Cannon Ballistic Gun Autogun Slashing Weapon Mining Claw Special Melee Weapon Datajack Build | -11 -10 -9 -9 -9 ------- Run | Yrd Mat Mat Sto Gar Slots Evolved 2 | . . 2 . . Power 1 | . . 1 . . Propulsion 1 | . . 1 . . Utility . | . . . . . Weapon . | . . . . . Parts Attached 61 | 8 8 20 23 2 Power 16 | 1 1 6 7 1 Engine 16 | 1 1 6 7 1 Core . | . . . . . Reactor . | . . . . . Propulsion 16 | 4 . 6 5 1 Treads 6 | 2 . 4 . . Leg 2 | . . 2 . . Wheel 2 | 2 . . . . Hover . | . . . . . Flight 6 | . . . 5 1 Utility 9 | 1 2 3 3 . Device 5 | . 1 2 2 . Storage 3 | 1 1 1 . . Processor . | . . . . . Hackware . | . . . . . Protection 1 | . . . 1 . Artifact . | . . . . . Weapon 20 | 2 5 5 8 . Energy Gun 5 | 1 2 2 . . Energy Cannon 2 | . . 2 . . Ballistic Gun 10 | 1 3 1 5 . Ballistic Cannon . | . . . . . Launcher . | . . . . . Special Weapon . | . . . . . Impact Weapon . | . . . . . Slashing Weapon 2 | . . . 2 . Piercing Weapon . | . . . . . Special Melee Weapon 1 | . . . 1 . Unidentified Prototypes 2 | . . . 2 . Corrupted Parts 1 | . . 1 . . System Corruption 1 | . . 1 . . Parts Lost 19 | . . 10 7 2 Power 6 | . . 3 2 1 Propulsion 5 | . . 4 . 1 Utility 3 | . . 1 2 . Weapon 5 | . . 2 3 . Highest Loss Streak 6 | . . 6 4 2 To Critical Strikes . | . . . . . Average Slot Usage (%) 87 | . 99 81 80 55 Engine 17 | . 14 20 18 17 Treads 17 | . 28 13 9 . Leg 2 | . . 5 . . Flight 4 | . . . 17 26 Device 10 | . 13 10 5 . Storage 10 | . 14 11 4 . Energy Gun 10 | . 15 9 7 . Ballistic Gun 9 | . 12 11 3 . Slashing Weapon 2 | . . . 9 . Peak Build Rating 20 | 6 11 14 20 12 Average Rating 10 | 3 9 10 13 10 On Entrance 7 | . 6 11 11 8 Naked Turns . | . . . . . Heaviest Build 44 | 13 39 44 36 7 Greatest Support 40 | 40 40 40 40 15 Greatest Overweight (x) 9 | . . 9 1 . Average Overweight (x) . | . . 1 . . Largest Inventory Capacity 15 | 8 15 15 15 5 Average Capacity 13 | 6 14 15 9 5 Most Carried 15 | 5 9 12 15 3 Average Carried 7 | 3 6 8 7 2 Final Capacity 15 | 8 15 15 5 5 Final Carried 10 | 3 9 10 4 2 Class Distribution -------------------- 61% | Mutant 30% | Scavenger-Mutant 7% | Commander-Mutant Dominant Class ---------------- Mutant | -10/Materials Scavenger-Mutant | -9/Materials Commander-Mutant | -9/Storage Mutant | -9/Garrison Resources | -11 -10 -9 -9 -9 ----------- Run | Yrd Mat Mat Sto Gar Matter Collected 995 | 242 170 419 164 . Remotely . | . . . . . Salvage Created 1331 | . 349 632 350 . Parts 95 | . 33 42 20 . Haulers Intercepted . | . . . . . Recyclers Shooed 2 | . . 2 . . Parts Field Recycled 13 | . 7 6 . . Retrieved Matter 97 | . 69 28 . . Parts Self-Destructed . | . . . . . Prevented . | . . . . . Kills | -11 -10 -9 -9 -9 ------- Run | Yrd Mat Mat Sto Gar Combat Hostiles Destroyed 30 | . 12 13 5 . Guns 29 | . 12 12 5 . AOE 1 | . . 1 . . Classes Destroyed 7 | . 3 4 . . Worker 1 | . . 1 . . Builder 1 | . . 1 . . Recycler 1 | . . 1 . . Watcher 6 | . 2 2 2 . Swarmer 3 | . 3 . . . Grunt 22 | . 9 9 4 . Sentry 6 | . . 4 2 . Best Kill Streak 4 | . 2 4 3 . Combat Bots Only 4 | . 2 4 2 . Max Kills in Single Turn 2 | . 2 1 1 . Gunslinging 1 | . 1 . . . Exploded 1 | . . 1 . . Melee . | . . . . . Uniques/NPCs Destroyed . | . . . . . Combat | -11 -10 -9 -9 -9 -------- Run | Yrd Mat Mat Sto Gar Hostile Shots Fired 240 | . 45 90 90 15 Missed 60 | . 9 12 32 7 Damage Taken 2249 | . 404 1045 730 70 Core 500 | . 98 137 227 38 Absorbed by Shields . | . . . . . Core Remaining (%) 80 | 100 60 . . . Volleys Fired 122 | . 34 59 29 . Largest 2 | . 2 2 1 . Hottest 130 | . 130 88 45 . Shots Fired 194 | . 65 100 29 . Gun 187 | . 65 93 29 . Cannon 7 | . . 7 . . Launcher . | . . . . . Special . | . . . . . Kinetic 103 | . 32 55 16 . Thermal 70 | . 33 37 . . Explosive . | . . . . . Electromagnetic 21 | . . 8 13 . Robot Hit Streak 12 | . 10 8 12 . Robot Miss Streak 6 | . 6 4 2 . Penetration Max . | . . . . . Secondary Targets 4 | . 1 3 . . Max Gunslinging Chain 1 | . 1 1 . . Shots Hit Robots 160 | . 52 79 29 . Core Hits 115 | . 46 53 16 . Critical Kills . | . . . . . Critical Parts Destroyed . | . . . . . Critical Strikes . | . . . . . Melee Attacks 3 | . . . 3 . Impact . | . . . . . Slashing . | . . . . . Piercing . | . . . . . Sneak Attacks . | . . . . . Combat Hostiles . | . . . . . Follow-up Attacks . | . . . . . Damage Inflicted 2336 | . 681 1230 425 . Guns 2177 | . 645 1107 425 . Cannons 88 | . . 88 . . Explosions 28 | . . 28 . . Melee . | . . . . . Ramming 43 | . 36 7 . . Kinetic 1072 | . 300 542 230 . Thermal 918 | . 345 573 . . Explosive . | . . . . . Electromagnetic 303 | . . 108 195 . Impact . | . . . . . Slashing . | . . . . . Piercing . | . . . . . Highest Corruption 1 | . . 1 1 1 Average Corruption 1 | . . 1 1 1 Corruption Purged . | . . . . . Corruption Blocked . | . . . . . Effects 5 | . . . 5 . Message Errors 1 | . . . 1 . Energy Discharges 2 | . . . 2 . Data Loss (minor) 1 | . . . 1 . Data Loss (major) 1 | . . . 1 . Overload Shots . | . . . . . Overflow Damage . | . . . . . Projectiles . | . . . . . Explosions . | . . . . . Melee . | . . . . . Knockbacks . | . . . . . Impact . | . . . . . Kinetic . | . . . . . Secondary . | . . . . . Self-Inflicted Damage 36 | . . 36 . . Shots 1 | . . 1 . . Rammed 6 | . 4 2 . . Targets Rammed 6 | . 4 2 . . Kicked . | . . . . . Crushed . | . . . . . Highest Temperature 476 | . 426 476 324 . Average Temperature 149 | . 115 174 165 . Received Heat Transfer 903 | . 183 450 270 . Effects 16 | . 4 11 1 . Shutdowns 5 | . 1 4 . . Energy Bleed 1 | . 1 . . . Interference 3 | . . 3 . . Matter Decay 3 | . . 2 1 . Short Circuit 2 | . 1 1 . . Damage (minor) 2 | . 1 1 . . Siege Activations . | . . . . . Robots Corrupted . | . . . . . Combat Hostiles . | . . . . . Parts Fried . | . . . . . Impact Corruptions . | . . . . . Robots Melted . | . . . . . Combat Hostiles . | . . . . . Parts Melted 2 | . . 2 . . Heat Transferred 1225 | . 425 800 . . Parts Sabotaged . | . . . . . Parts Stolen . | . . . . . Parts Stripped . | . . . . . Power Chain Reactions 1 | . . 1 . . Alert | -11 -10 -9 -9 -9 ------- Run | Yrd Mat Mat Sto Gar Peak Influence 390 | . 294 262 390 185 Initial 146 | . . 60 53 146 Average 151 | . 144 133 211 147 Maximum Alert Level 1 | . 1 1 1 . Low Security (%) 72 | 100 66 93 43 100 Level 1 27 | . 33 6 56 . Level 2 . | . . . . . Level 3 . | . . . . . Level 4 . | . . . . . Level 5 . | . . . . . High Security . | . . . . . Max Security . | . . . . . Squads Dispatched 11 | . 4 3 4 . Investigation 3 | . 1 2 . . Extermination . | . . . . . Reinforcement 6 | . 3 1 2 . Assault 2 | . . . 2 . Garrison . | . . . . . Intercept . | . . . . . Searches Triggered . | . . . . . Construction Impeded . | . . . . . Haulers Reinforced . | . . . . . Active Scanning Responses . | . . . . . Cargo Convoy Interrupts . | . . . . . Stealth | -11 -10 -9 -9 -9 --------- Run | Yrd Mat Mat Sto Gar Distress Signals 3 | . 1 . 2 . Communications Jammed . | . . . . . Distress Signals . | . . . . . Times Spotted 83 | . 22 20 33 8 Peak Tracking Total 9 | . 4 4 9 7 Tactical Retreats 10 | . 4 2 3 1 Traps | -11 -10 -9 -9 -9 ------- Run | Yrd Mat Mat Sto Gar Traps Triggered 6 | . 1 1 4 . Indirectly . | . . . . . Trap Hack Attempts . | . . . . . Triggered . | . . . . . Disarmed . | . . . . . Reprogrammed . | . . . . . Reused . | . . . . . Traps Extracted . | . . . . . Installed . | . . . . . Triggered . | . . . . . Machines | -11 -10 -9 -9 -9 ---------- Run | Yrd Mat Mat Sto Gar Machines Disabled . | . . . . . Max in Single Turn . | . . . . . Machines Repaired . | . . . . . Machines Dismantled . | . . . . . Machines Sabotaged . | . . . . . Overloaded Fab Kills . | . . . . . Hacking | -11 -10 -9 -9 -9 --------- Run | Yrd Mat Mat Sto Gar Machines Accessed 10 | . 2 3 4 1 Terminals 8 | . 2 2 3 1 Fabricators . | . . . . . Repair Stations . | . . . . . Recycling Units . | . . . . . Scanalyzers 1 | . . 1 . . Garrison Access 1 | . . . 1 . Total Hacks 28 | . 7 12 8 1 Successful 16 | . 3 8 4 1 Failed 12 | . 4 4 4 . Catastrophic . | . . . . . Database Lockouts . | . . . . . Manual . | . . . . . Terminals 25 | . 7 10 7 1 Fabricators . | . . . . . Repair Stations . | . . . . . Recycling Units . | . . . . . Scanalyzers 2 | . . 2 . . Garrison Access 1 | . . . 1 . Terminal Hacks 13 | . 3 6 3 1 Robot Analysis 1 | . . . 1 . Prototype ID Bank 3 | . 1 1 1 . Open Door 1 | . . . 1 . Level Access Points 1 | . . 1 . . Branch Access Points 1 | . . 1 . . Emergency Access Points 4 | . 1 2 . 1 Terminal Index 1 | . . 1 . . Locate Traps 1 | . 1 . . . Fabricator Hacks . | . . . . . Repair Station Hacks . | . . . . . Recycling Unit Hacks . | . . . . . Scanalyzer 2 | . . 2 . . Insert Component 1 | . . 1 . . Analyze 1 | . . 1 . . Garrison Access Hacks 1 | . . . 1 . Unlock Access 1 | . . . 1 . Unauthorized Hacks . | . . . . . Terminals . | . . . . . Fabricators . | . . . . . Repair Stations . | . . . . . Recycling Units . | . . . . . Scanalyzers . | . . . . . Garrison Access . | . . . . . Data Cores Recovered . | . . . . . Used . | . . . . . Hacking Detections 8 | . 2 2 3 1 Full Trace Events 1 | . . 1 . . Feedback Events . | . . . . . Feedback Blocked . | . . . . . Robot Schematics Acquired . | . . . . . Robots Built . | . . . . . Authchips . | . . . . . Time . | . . . . . Total Robot Build Rating . | . . . . . Part Schematics Acquired 1 | . . 1 . . Parts Built . | . . . . . Authchips . | . . . . . Time . | . . . . . Total Part Build Rating . | . . . . . Parts Repaired . | . . . . . Time . | . . . . . Parts Recycled . | . . . . . Recycled Matter . | . . . . . Retrieved Matter . | . . . . . Retrieved Components . | . . . . . Parts Scanalyzed 1 | . . 1 . . Part Schematics Acquired 1 | . . 1 . . Parts Damaged . | . . . . . Bothacking | -11 -10 -9 -9 -9 ------------ Run | Yrd Mat Mat Sto Gar Used RIF Installer . | . . . . . Robots Hacked 1 | . . . 1 . Non-combat . | . . . . . Combat 1 | . . . 1 . Robot Hacks Applied 1 | . . . 1 . parse_system 1 | . . . 1 . Relay Couplers Released . | . . . . . Fabnet Peak Effective % . | . . . . . Robots Rewired . | . . . . . Allies Hacked . | . . . . . Hacks Repelled . | . . . . . Allies | -11 -10 -9 -9 -9 -------- Run | Yrd Mat Mat Sto Gar Total Allies 12 | . . . 12 . Largest Group 12 | . . . 12 . Highest-Rated Group 150 | . . . 150 . Highest-Rated Ally 31 | . . . 31 . Total Orders . | . . . . . Ally Attacks 49 | . . . 49 . Total Damage 530 | . . . 530 . Kills 12 | . . . 12 . Allies Corrupted . | . . . . . Allies Melted . | . . . . . Intel | -11 -10 -9 -9 -9 ------- Run | Yrd Mat Mat Sto Gar Robot Analysis Total 1 | . . . 1 . Derelict Logs Recovered . | . . . . . Drone Launches . | . . . . . Drone Recoveries . | . . . . . Exploration | -11 -10 -9 -9 -9 ------------- Run | Yrd Mat Mat Sto Gar Turns Passed 2280 | 59 831 850 498 42 Spaces Moved 1138 | 45 378 273 332 110 Core 29 | 20 . 9 . . Treads 683 | 15 378 174 116 . Legs 90 | . . 90 . . Wheels 10 | 10 . . . . Hover . | . . . . . Flight 326 | . . . 216 110 Fastest Speed 34 | 50 160 160 34 34 Average Speed 139 | 96 160 221 87 35 Slowest Speed 500 | 160 160 500 160 37 Overloaded Moves . | . . . . . Propulsion Burnouts . | . . . . . Robots Hopped . | . . . . . Cave-ins Triggered . | . . . . . Exploration Rate (%) 30 | 4 54 30 51 15 Regions Visited 4 Branch Regions 1 Pre-discovered Areas . | . . . . . Known Exits Taken 2 | . . 1 1 . Unknown Exits Taken 2 | 1 1 . . . Scrap Searched . | . . . . . Spaces Dug . | . . . . . Terrain Destroyed 3 | . . 3 . . Melee . | . . . . . Projectile . | . . . . . AOE 3 | . . 3 . . Terrain Rammed . | . . . . . Walls Destroyed . | . . . . . Machines Disabled . | . . . . . Actions | -11 -10 -9 -9 -9 --------- Run | Yrd Mat Mat Sto Gar Total 1646 | 58 544 426 506 112 Wait 252 | 1 102 56 93 . Move 1135 | 44 377 272 332 110 Hop . | . . . . . Pick Up 46 | 5 13 14 14 . Fast Attach 17 | 4 . . 13 . Attach 28 | 2 3 14 7 2 Detach 1 | . . 1 . . Swap 16 | 2 5 6 3 . Drop 20 | . 6 2 12 . Fire 122 | . 34 59 29 . Melee 3 | . . . 3 . Ram . | . . . . . Kick . | . . . . . Crush 6 | . 4 2 . . Escape Stasis . | . . . . . Rewire . | . . . . . Trap . | . . . . . Miscellaneous . | . . . . . Route ------- -11/Scrapyard -10/Materials (discovered 2 exits: *Mat x2) -9/Materials (discovered 5 exits: *Mat x3 / Min / *Sto) -9/Storage -9/Garrison History --------- Turn | Location | Event 7 | -11/Scrapyard | Discovered new exit (range 16) 60 | -11/Scrapyard | Entered Materials 271 | -10/Materials | Discovered new exit (range 5) 311 | -10/Materials | Build established: Mutant 813 | -10/Materials | Discovered new exit (range 13) 891 | -10/Materials | Entered another Materials area 891 | -9/Materials | Evolved 2 slots: Power x1, Propulsion x1 1064 | -9/Materials | Lost 4 parts (1p2n1w) 1353 | -9/Materials | Build established: Scavenger-Mutant 1476 | -9/Materials | Lost 6 parts (2p2n1u1w) 1632 | -9/Materials | Identified exit to Materials 1632 | -9/Materials | Identified exit to Mines 1632 | -9/Materials | Identified exit to Storage 1741 | -9/Materials | Entered Storage 1872 | -9/Storage | Assisted by bots powering up and referring to "LRC-V3" 1944 | -9/Storage | Met a pair of Derelict thieves 2098 | -9/Storage | Lost 9 allies 2125 | -9/Storage | Lost 3 parts (1p1u1w) 2207 | -9/Storage | Core integrity fell below 50% 2226 | -9/Storage | Core integrity fell below 20% 2239 | -9/Storage | Identified exit to Garrison 2239 | -9/Storage | Entered Garrison 2256 | -9/Garrison | Lost 4 parts (1p1u2w) 2259 | -9/Garrison | Triggered checkpoint 2275 | -9/Garrison | Triggered checkpoint 2281 | -9/Garrison | Destroyed by P-60 Hacker with Shock Rifle Last Messages --------------- Connecting with Garrison Access... >>Unlock Access door unlocked. EXIT=UNLOCKED: GARRISON Connecting with Garrison Access... LOCATION=GARRISON GOAL=ESCAPE Beams of light sweep through the air. An alarm sounds. C-30 ARC bursts open, deploying its payload. S-10 Pest unfolds itself. Imp. Flight Unit destroyed. Connecting with Garrison Terminal... >>Access(Emergency) Found 43 emergency access points. Map updated. Lgt. Ion Engine destroyed. Beams of light sweep through the air. An alarm sounds. P-60 Hacker springs to life. Map ----- +----------------------------------------------------+ | ???????????????????????????????????????????????? | | ???????????????????????????????????????????????? | | ???????????????????????????????????????????????? | | ???????????????????????????????????????????????? | | ???????????????????????????????????????????????? | | ???????????????????????????????????????????????? | | ???????????????????????????????????????????????? | | ???????????###?????????????????????????????????? | | ???????#####T#########################?????????? | | ???????+ ????????? | | ???????# ????????? | | ?????### #### #### ????????? | | ?????#"# #??????????# s#########++#??????????? | | ?????#" #?????+????# #?????????????????????? | | ?????#" #??????????# #?????????????????????? | | ?????#" #??????????# #?????????????????????? | | ?????#"# #??????????# #?????????????????????? | | ?????### #??????????# #?????????????????????? | | ?????### #??????????# #?????????????????????? | | ?????#"# #??????????# #?????????????????????? | | ?????#" #??????????# #?????????????????????? | | ?????#" #??????????# #?????????????????????? | | ?????#" #??###+##??# #?????????????????????? | | ?????#"# #??# "#??# #????????????????+????? | | ?????### #### %#### #?????????????????????? | | ???????# @ #?????????????????????? | | ???????+ #?????????????????????? | | ???????############### #?????????????????????? | | ?????????????????????# #?????????????????????? | | ?????????????????????# #?????????????????????? | | ??????????############ #?????????????????????? | | ??????????# +?????????????????????? | | ??????????# +?????????????????????? | | ??????????# #?????????????????????? | | ??????????############ ###?????????????????????? | | ?????????????????????# #???????????????????????? | | ?????????????????????+ +???????????????????????? | | ?????????????????????# #???????????????????????? | | ???????????????????+?# #?+?????????????????????? | | ?????????????????????# #???????????????????????? | | ?????????????????????+p+???????????????????????? | | ??????????????????????#????????????????????????? | | ???????????????????????????????????????????????? | | ???????????????????????????????????????????????? | | | | | | | | | | | | | +----------------------------------------------------+ Best States ------------- Heat Dissipation 42 Energy Generation 23 Energy Capacity 400 Matter Stores 300 Matter Capacity 300 Sight Range 16 Terrain Scan Density 10 ECM Strength 1 Armor Coverage 150 Evasion (%) 63 Recoil Reduction 2 Item Schematics ----------------- Ion Engine | -9/Materials | Scanalyzed Robot Schematics ------------------ None Fabricated ------------ Nothing Alien Tech Used ----------------- None Achievements -------------- Backstab The More The Merrier Challenges ------------ None Game ------ Seed XenonScatterPick Manual? 0 Play Time 00:32:42 Cumulative 7.8 hours Start 2024.11.29 @ 10:14:08 End 2024.11.29 @ 10:45:34 Sessions 1 Manual Loads 0 Difficulty Rogue Special Mode None Game No. 9 Rogue 9 Adventurer 0 Explorer 0 Win Type - Total 0 Types 0/0/0/0/0/0/0/0/0 Lore% 6 Gallery% 12 Achievement% 14 Wizard Run 0 Options --------- Layout 1 ASCII 0 Keyboard 0 Movement Mouse Keybinds 0 Fullscreen 2 Font 24/Tamsyn Map View 50x35 Zoom Use 0% Tactical HUD 0 Map Filters NONE Filters NONE Steam 0 RUN: 9e3e3541-4884-4af6-9378-cc76f64d5e90